Cogmind - Beta 15 @@@ ROGUE MODE // 2025.09.30 @ 13:38:22 Player: Runagate Result: Self-destructed Performance ------------- Evolutions (2) 1000 Regions Visited (5) 1000 Robots Destroyed (28) 140 Value Destroyed (702) 702 Prototype IDs (28) 560 Alien Tech Used (0) 0 Bonus (300) 300 TOTAL SCORE: 3702 Bonus ------- Aligned with FarCom 300 Cogmind --------- Core Integrity 284/550 Matter 300/300 Energy 71/100 System Corruption 2% Temperature Cool (43) Movement Core (750) Ox14 Location -8/Materials Parts ------- > --- POWER (1) -------- (None) > --- PROPULSION (3) --- (None) > --- UTILITY (4) ------ High-capacity Storage Unit Improved Targeting Computer Hacking Suite > --- WEAPON (3) ------- Advanced Beam Cannon > --- INVENTORY (20) --- Ion Engine Ion Engine Ion Engine Improved Ion Engine Light Treads Light Treads Heat Sink Heat Sink Large Storage Unit Medium Matter Pod (100) Seismic Detector Seismic Detector Modified TNC Light Armor Plating Small Laser Spread Laser Particle Cannon Light Assault Rifle Mini Grenade Launcher Mining Claw Peak State ------------ > --- POWER ------------ Light Nuclear Core > --- PROPULSION ------- Light Treads Light Treads Light Treads > --- UTILITY ---------- Improved Heat Sink High-capacity Storage Unit Improved Targeting Computer Hacking Suite > --- WEAPON ----------- Advanced Beam Cannon Light Assault Rifle Heavy Assault Rifle > --- INVENTORY -------- Ion Engine Ion Engine Ion Engine Improved Ion Engine Light Treads Light Treads Heat Sink Heat Sink Large Storage Unit Medium Matter Pod Seismic Detector Seismic Detector Modified TNC Light Armor Plating Small Laser Spread Laser Particle Cannon Light Assault Rifle Mini Grenade Launcher Mining Claw [Rating: 23] Favorites ----------- Power Ion Engine Engine Ion Engine Power Core Light Nuclear Core Propulsion Light Treads Treads Light Treads Utility Heat Sink Device Heat Sink Storage Large Storage Unit Processor Improved Targeting Computer Hackware Hacking Suite Weapon Light Assault Rifle Energy Gun Spread Laser Energy Cannon Particle Cannon Ballistic Gun Light Assault Rifle Build | -11 -10 -10 -10 -9 -8 ------- Run | Yrd Mat Min Exi Min Mat Slots Evolved 4 | . . . . . 4 Power . | . . . . . . Propulsion 1 | . . . . . 1 Utility 2 | . . . . . 2 Weapon 1 | . . . . . 1 Parts Attached 29 | 8 8 1 . . 12 Power 2 | 1 . . . . 1 Engine 1 | 1 . . . . . Core 1 | . . . . . 1 Reactor . | . . . . . . Propulsion 6 | 2 2 . . . 2 Treads 6 | 2 2 . . . 2 Leg . | . . . . . . Wheel . | . . . . . . Hover . | . . . . . . Flight . | . . . . . . Utility 12 | 2 5 . . . 5 Device 6 | 1 3 . . . 2 Storage 4 | 1 2 . . . 1 Processor 1 | . . . . . 1 Hackware 1 | . . . . . 1 Protection . | . . . . . . Artifact . | . . . . . . Weapon 9 | 3 1 1 . . 4 Energy Gun 3 | 1 1 1 . . . Energy Cannon 2 | . . . . . 2 Ballistic Gun 4 | 2 . . . . 2 Ballistic Cannon . | . . . . . . Launcher . | . . . . . . Special Weapon . | . . . . . . Impact Weapon . | . . . . . . Slashing Weapon . | . . . . . . Piercing Weapon . | . . . . . . Special Melee Weapon . | . . . . . . Unidentified Prototypes 1 | . . . . . 1 Parts Lost 8 | . . . . . 8 Power 1 | . . . . . 1 Propulsion 3 | . . . . . 3 Utility 2 | . . . . . 2 Weapon 2 | . . . . . 2 Highest Loss Streak 7 | . . . . . 7 To Critical Strikes . | . . . . . . Average Backups 11 | 1 9 13 13 14 17 Power 1 | . 1 2 2 2 3 Propulsion . | . . 1 1 1 . Utility 4 | . 3 6 6 7 7 Weapon 4 | . 3 4 4 4 5 Tool/Special . | . . . . . . Unused Backups 14 | . . . . . 14 Power 4 | . . . . . 4 Propulsion 1 | . . . . . 1 Utility 6 | . . . . . 6 Weapon 3 | . . . . . 3 Tool/Special . | . . . . . . Average Slot Usage (%) 98 | . 99 100 100 100 91 Engine 11 | . 14 14 14 14 1 Core 1 | . . . . . 6 Treads 27 | . 28 28 28 28 25 Device 12 | . 14 14 14 14 7 Storage 12 | . 14 14 14 14 9 Processor 1 | . . . . . 6 Hackware 1 | . . . . . 7 Energy Gun 4 | . 1 18 14 14 . Energy Cannon 1 | . . . . . 8 Ballistic Gun 20 | . 25 10 14 14 17 Peak Build Rating 23 | 7 9 10 10 10 23 Average Rating 10 | 5 7 9 9 10 18 On Entrance 7 | . 7 9 9 10 10 Naked Turns . | . . . . . . Heaviest Build 70 | 14 31 32 30 30 70 Greatest Support 60 | 40 40 40 40 40 60 Greatest Overweight (x) 1 | . . . . . 1 Average Overweight (x) . | . . . . . . Largest Inventory Capacity 20 | 8 15 15 15 15 20 Average Capacity 13 | 7 11 15 15 15 19 Most Carried 20 | 2 15 15 14 14 20 Average Carried 11 | 1 9 13 13 14 17 Final Capacity 20 | 8 15 15 15 15 20 Final Carried 20 | 2 15 13 14 14 20 Class Distribution -------------------- 79% | Mutant 13% | Skirmisher 7% | Scavenger-Skirmisher Dominant Class ---------------- Mutant | -10/Materials Mutant | -10/Mines Mutant | -10/Exiles Mutant | -9/Mines Skirmisher | -8/Materials Resources | -11 -10 -10 -10 -9 -8 ----------- Run | Yrd Mat Min Exi Min Mat Matter Collected 981 | 362 269 93 . 7 250 Remotely . | . . . . . . Salvage Created 1030 | 163 316 11 . . 540 Parts 57 | 7 19 . . . 31 Haulers Intercepted 2 | . 1 . . . 1 Recyclers Shooed . | . . . . . . Parts Field Recycled . | . . . . . . Retrieved Matter . | . . . . . . Parts Self-Destructed . | . . . . . . Prevented . | . . . . . . Kills | -11 -10 -10 -10 -9 -8 ------- Run | Yrd Mat Min Exi Min Mat Combat Hostiles Destroyed 23 | . 9 2 . . 12 Guns 17 | . 9 2 . . 6 Cannons 6 | . . . . . 6 Classes Destroyed 9 | 2 3 1 . . 3 Tunneler 3 | 3 . . . . . Hauler 2 | . 1 . . . 1 Recycler 1 | 1 . . . . . Watcher 1 | . . . . . 1 Swarmer 7 | . 3 . . . 4 Grunt 10 | . 6 . . . 4 Brawler 1 | . . . . . 1 Sentry 3 | . . . . . 3 Assembled 2 | . . 2 . . . Best Kill Streak 6 | 3 3 2 . . 6 Combat Bots Only 6 | . 3 2 . . 6 Max Kills in Single Turn 1 | 1 1 1 . . 1 Gunslinging . | . . . . . . Exploded . | . . . . . . Melee . | . . . . . . Uniques/NPCs Destroyed . | . . . . . . Combat | -11 -10 -10 -10 -9 -8 -------- Run | Yrd Mat Min Exi Min Mat Hostile Shots Fired 198 | . 34 21 . . 143 Missed 51 | . 11 3 . . 37 Hits 147 | . 23 18 . . 106 Melee 9 | . . 6 . . 3 Projectile 138 | . 23 12 . . 103 Critical Strikes 6 | . . 2 . . 4 Damage Taken 1723 | . 231 361 . . 1131 Core 389 | . 52 71 . . 266 Absorbed by Shields . | . . . . . . Regen/Repaired (Parts) 81 | . 81 . . . . Core Remaining (%) 75 | 100 . . . 50 . Volleys Fired 89 | 17 26 8 . . 38 Largest 3 | 2 2 2 . . 3 Hottest 130 | 40 85 130 . . 111 Shots Fired 206 | 34 52 13 . . 107 Gun 168 | 34 52 13 . . 69 Cannon 38 | . . . . . 38 Launcher . | . . . . . . Special . | . . . . . . Kinetic 153 | 34 48 2 . . 69 Thermal 53 | . 4 11 . . 38 Explosive . | . . . . . . Electromagnetic . | . . . . . . Robot Hit Streak 17 | 9 7 9 . . 17 Robot Miss Streak 3 | 2 3 3 . . 2 Penetration Max . | . . . . . . Secondary Targets 2 | . 1 1 . . . Max Gunslinging Chain 1 | . 1 1 . . . Shots Hit Robots 143 | 23 34 11 . . 75 Core Hits 72 | 8 23 19 . . 22 Critical Kills 1 | . 1 . . . . Critical Parts Destroyed 2 | 1 1 . . . . Critical Strikes 4 | 1 2 . . . 1 Destroy 4 | 1 2 . . . 1 Melee Attacks . | . . . . . . Impact . | . . . . . . Slashing . | . . . . . . Piercing . | . . . . . . Sneak Attacks . | . . . . . . Combat Hostiles . | . . . . . . Follow-up Attacks . | . . . . . . Damage Inflicted 1975 | 242 354 181 . 3 1195 Guns 1352 | 241 351 181 . . 579 Cannons 616 | . . . . . 616 Explosions . | . . . . . . Melee . | . . . . . . Ramming 7 | 1 3 . . 3 . Kinetic 1142 | 241 307 15 . . 579 Thermal 826 | . 44 166 . . 616 Explosive . | . . . . . . Electromagnetic . | . . . . . . Impact . | . . . . . . Slashing . | . . . . . . Piercing . | . . . . . . Highest Corruption 5 | . 5 5 5 5 2 Average Corruption 4 | . 4 5 5 5 2 Corruption Purged . | . . . . . . Corruption Blocked . | . . . . . . Effects 19 | . 5 8 6 . . Message Errors 3 | . 1 1 1 . . Matter Fused 6 | . 3 2 1 . . Heat Flow Errors 2 | . 1 1 . . . Energy Discharges 1 | . . 1 . . . Data Loss (minor) 3 | . . 1 2 . . Data Loss (major) 1 | . . . 1 . . Alerts 2 | . . 1 1 . . Weapon Failures 1 | . . 1 . . . Overload Shots . | . . . . . . Overflow Damage 3 | . . . . . 3 Projectiles 3 | . . . . . 3 Explosions . | . . . . . . Melee . | . . . . . . Knockbacks . | . . . . . . Impact . | . . . . . . Kinetic . | . . . . . . Secondary . | . . . . . . Self-Inflicted Damage . | . . . . . . Shots . | . . . . . . Rammed 3 | 1 1 . . 1 . Targets Rammed 3 | 1 1 . . 1 . Kicked . | . . . . . . Crushed . | . . . . . . Highest Temperature 281 | . 138 142 . . 281 Average Temperature 71 | . 21 63 . . 84 Received Heat Transfer 433 | . 87 40 . . 306 Siege Activations . | . . . . . . Martial Activations . | . . . . . . Shielding Activations . | . . . . . . Robots Disrupted . | . . . . . . Combat Hostiles . | . . . . . . Robots Corrupted . | . . . . . . Combat Hostiles . | . . . . . . Parts Fried . | . . . . . . Impact Corruptions . | . . . . . . Robots Melted . | . . . . . . Combat Hostiles . | . . . . . . Parts Melted 2 | . . . . . 2 Heat Transferred 1370 | . 55 205 . . 1110 Parts Sabotaged . | . . . . . . Parts Stolen . | . . . . . . Parts Stripped . | . . . . . . Power Chain Reactions . | . . . . . . Alert | -11 -10 -10 -10 -9 -8 ------- Run | Yrd Mat Min Exi Min Mat Maximum Alert Level . | . . . . . . Low Security (%) 100 | 100 100 100 . 100 100 Level 1 . | . . . . . . Level 2 . | . . . . . . Level 3 . | . . . . . . Level 4 . | . . . . . . Level 5 . | . . . . . . High Security . | . . . . . . Max Security . | . . . . . . Peak Influence 133 | 5 72 13 . . 133 Initial 13 | . . 13 . . . Average 14 | . 17 1 . . 14 Influence Increases 632 | 20 287 . . . 325 Destroy 0b10 Robot/C 420 | . 180 . . . 240 Destroy 0b10 Robot/NC 35 | 20 5 . . . 10 Destroy Leader 86 | . 42 . . . 44 Successful Hack 15 | . 15 . . . . Destroy Structure 1 | . . . . . 1 Lose Combat Pursuer 75 | . 45 . . . 30 Influence Decreases 527 | 20 251 36 . . 220 Entered New Map 23 | . . 23 . . . Time Decay 434 | 20 251 13 . . 150 Lost Part 70 | . . . . . 70 Squads Dispatched 3 | . 3 . . . . Investigation 2 | . 2 . . . . Extermination . | . . . . . . Reinforcement 1 | . 1 . . . . Assault . | . . . . . . Garrison . | . . . . . . Intercept . | . . . . . . Searches Triggered . | . . . . . . Construction Impeded . | . . . . . . Haulers Reinforced . | . . . . . . Active Scanning Responses . | . . . . . . Cargo Convoy Interrupts . | . . . . . . Stealth | -11 -10 -10 -10 -9 -8 --------- Run | Yrd Mat Min Exi Min Mat Distress Signals 1 | . . . . . 1 Communications Jammed . | . . . . . . Distress Signals . | . . . . . . Times Spotted 47 | . 10 19 . . 18 Peak Tracking Total 19 | . 3 19 . . 9 Tactical Retreats 4 | . 2 . . . 2 Traps | -11 -10 -10 -10 -9 -8 ------- Run | Yrd Mat Min Exi Min Mat Traps Triggered 4 | . 4 . . . . Indirectly . | . . . . . . Trap Hack Attempts . | . . . . . . Triggered . | . . . . . . Disarmed . | . . . . . . Reprogrammed . | . . . . . . Reused . | . . . . . . Traps Extracted . | . . . . . . Installed . | . . . . . . Triggered . | . . . . . . Machines | -11 -10 -10 -10 -9 -8 ---------- Run | Yrd Mat Min Exi Min Mat Machines Disabled . | . . . . . . Max in Single Turn . | . . . . . . Machines Repaired . | . . . . . . Machines Dismantled . | . . . . . . Machines Sabotaged . | . . . . . . Overloaded Fab Kills . | . . . . . . Hacking | -11 -10 -10 -10 -9 -8 --------- Run | Yrd Mat Min Exi Min Mat Machines Accessed 10 | . 7 . 1 . 2 Terminals 8 | . 6 . . . 2 Fabricators . | . . . . . . Repair Stations 1 | . 1 . . . . Recycling Units . | . . . . . . Scanalyzers . | . . . . . . Garrison Access . | . . . . . . Total Hacks 35 | . 27 . 1 . 7 Successful 21 | . 17 . 1 . 3 Failed 14 | . 10 . . . 4 Catastrophic 2 | . 2 . . . . Database Lockouts . | . . . . . . Manual 22 | . 15 . 1 . 6 Terminals 30 | . 23 . . . 7 Fabricators . | . . . . . . Repair Stations 4 | . 4 . . . . Recycling Units . | . . . . . . Scanalyzers . | . . . . . . Garrison Access . | . . . . . . Terminal Hacks 10 | . 8 . 1 . 1 Prototype ID Bank 2 | . 1 . . . 1 Locate Traps 1 | . 1 . . . . Registered Components 1 | . 1 . . . . Registered Prototypes 1 | . 1 . . . . Zone Layout 4 | . 4 . . . . Proto ID Catalog 1 | . . . 1 . . Fabricator Hacks . | . . . . . . Repair Station Hacks 4 | . 4 . . . . Scan Component 2 | . 2 . . . . Repair 2 | . 2 . . . . Recycling Unit Hacks . | . . . . . . Scanalyzer . | . . . . . . Garrison Access Hacks . | . . . . . . Unauthorized Hacks 7 | . 5 . . . 2 Terminals 7 | . 5 . . . 2 Botnet 7 | . 5 . . . 2 Fabricators . | . . . . . . Repair Stations . | . . . . . . Recycling Units . | . . . . . . Scanalyzers . | . . . . . . Garrison Access . | . . . . . . Data Cores Recovered . | . . . . . . Used . | . . . . . . Hacking Detections 8 | . 6 . . . 2 Full Trace Events . | . . . . . . Feedback Events . | . . . . . . Feedback Blocked . | . . . . . . Robot Schematics Acquired . | . . . . . . Robots Built . | . . . . . . Authchips . | . . . . . . Time . | . . . . . . Total Robot Build Rating . | . . . . . . Part Schematics Acquired . | . . . . . . Parts Built . | . . . . . . Authchips . | . . . . . . Time . | . . . . . . Total Part Build Rating . | . . . . . . Parts Repaired 2 | . 2 . . . . Time 52 | . 52 . . . . Parts Recycled . | . . . . . . Recycled Matter . | . . . . . . Retrieved Matter . | . . . . . . Retrieved Components . | . . . . . . Parts Scanalyzed . | . . . . . . Part Schematics Acquired . | . . . . . . Parts Damaged . | . . . . . . Bothacking | -11 -10 -10 -10 -9 -8 ------------ Run | Yrd Mat Min Exi Min Mat Used RIF Installer . | . . . . . . Robots Hacked . | . . . . . . Non-combat . | . . . . . . Combat . | . . . . . . Robot Hacks Applied . | . . . . . . Relay Couplers Released . | . . . . . . Fabnet Peak Effective % . | . . . . . . Robots Rewired . | . . . . . . Allies Hacked . | . . . . . . Hacks Repelled . | . . . . . . Allies | -11 -10 -10 -10 -9 -8 -------- Run | Yrd Mat Min Exi Min Mat Total Allies . | . . . . . . Largest Group . | . . . . . . Highest-Rated Group . | . . . . . . Highest-Rated Ally . | . . . . . . Total Orders . | . . . . . . Ally Attacks . | . . . . . . Total Damage . | . . . . . . Kills . | . . . . . . Allies Corrupted . | . . . . . . Allies Melted . | . . . . . . Intel | -11 -10 -10 -10 -9 -8 ------- Run | Yrd Mat Min Exi Min Mat Active Infowar (turns) 1277 | 33 1244 . . . . Seismic 1277 | 33 1244 . . . . Robot Analysis Total . | . . . . . . Derelict Logs Recovered 1 | . . 1 . . . Drone Launches . | . . . . . . Drone Recoveries . | . . . . . . Exploration | -11 -10 -10 -10 -9 -8 ------------- Run | Yrd Mat Min Exi Min Mat Turns Passed 2813 | 165 1443 210 353 37 605 Spaces Moved 1359 | 64 709 109 221 23 233 Core 5 | 5 . . . . . Treads 1354 | 59 709 109 221 23 233 Legs . | . . . . . . Wheels . | . . . . . . Hover . | . . . . . . Flight . | . . . . . . Fastest Speed 50 | 50 160 160 160 160 160 Average Speed 159 | 151 160 160 160 160 161 Slowest Speed 240 | 160 160 160 160 160 240 Overloaded Moves . | . . . . . . Propulsion Burnouts . | . . . . . . Robots Hopped . | . . . . . . Potential Cave-ins . | . . . . . . Cave-ins Triggered . | . . . . . . Exploration Rate (%) 36 | 5 98 39 44 8 23 Regions Visited 5 Branch Regions 3 Pre-discovered Areas 1 | . . 1 . . . Known Exits Taken . | . . . . . . Unknown Exits Taken 5 | 1 1 1 1 1 . Scrap Searched 2 | . . . . 2 . Spaces Dug . | . . . . . . Terrain Destroyed . | . . . . . . Melee . | . . . . . . Projectile . | . . . . . . AOE . | . . . . . . Terrain Rammed . | . . . . . . Walls Destroyed . | . . . . . . Machines Disabled . | . . . . . . Actions | -11 -10 -10 -10 -9 -8 --------- Run | Yrd Mat Min Exi Min Mat Total 1828 | 96 971 131 221 23 386 Wait 313 | 4 211 10 . . 88 Move 1354 | 63 708 108 220 22 233 Hop . | . . . . . . Pick Up 22 | 1 12 . 1 . 8 Fast Attach 11 | 7 1 . . . 3 Attach 4 | . . 1 . . 3 Detach 1 | . . . . . 1 Swap 19 | 3 8 1 . . 7 Drop 10 | . 4 1 . . 5 Fire 89 | 17 26 8 . . 38 Melee . | . . . . . . Ram . | . . . . . . Kick . | . . . . . . Crush 3 | 1 1 . . 1 . Escape Stasis . | . . . . . . Rewire 2 | . . 2 . . . Trap . | . . . . . . Miscellaneous . | . . . . . . Route ------- -11/Scrapyard -10/Materials (discovered 6 exits: [*Mat x3] / [*Min x2] / [*Sub]) -10/Mines (discovered 2 exits: [*Mat] / *Exi) -10/Exiles -9/Mines -8/Materials History --------- Turn | Location | Event 3 | -11/Scrapyard | Discovered new exit (range 15) 166 | -11/Scrapyard | Entered Materials 167 | -10/Materials | Met a group of wandering Federalists 316 | -10/Materials | Build established: Mutant 420 | -10/Materials | Discovered new exit (range 3) 1015 | -10/Materials | Discovered new exit (range 3) 1063 | -10/Materials | Discovered new exit (range 10) 1216 | -10/Materials | Discovered new exit (range 10) 1314 | -10/Materials | Discovered new exit (range 16) 1472 | -10/Materials | Repaired Lgt. Treads 1499 | -10/Materials | Repaired Assault Rifle 1517 | -10/Materials | Discovered new exit (range 14) 1609 | -10/Materials | Entered Mines 1633 | -10/Mines | Assembled infested the area 1662 | -10/Mines | Met 8R-AWN 1725 | -10/Mines | Discovered new exit (range 11) 1813 | -10/Mines | Discovered new exit (range 5) 1819 | -10/Mines | Entered Exiles 1859 | -10/Exiles | Welcomed by 8R-AWN 1885 | -10/Exiles | Met EX-HEX 1938 | -10/Exiles | Met EX-BIN 1960 | -10/Exiles | Aligned with FarCom system 1962 | -10/Exiles | Given EX-Vault access code 1999 | -10/Exiles | Opened EX-Vault 2011 | -10/Exiles | Found Modified TNC 2046 | -10/Exiles | Warned to stay clear of 0b10 Research branches 2113 | -10/Exiles | Learned about 8R-AWN's background 2153 | -10/Exiles | Discovered new exit (range 14) 2172 | -10/Exiles | Left Exiles lab with Modified TNC 2172 | -10/Exiles | Entered Mines 2200 | -9/Mines | Discovered new exit (range 7) 2209 | -9/Mines | Entered Materials 2209 | -8/Materials | Evolved 4 slots: Propulsion x1, Utility x2, Weapon x1 2500 | -8/Materials | Build established: Skirmisher 2814 | -8/Materials | Self-destructed Last Messages --------------- 02787_ Acquired 4 matter. 02788_ Lgt. Treads destroyed. 02791_ Acquired 4 matter. 02793_ Destroyed Lgt. Ion Engine. 02793_ S-10 Pest destroyed. 02793_ R-06 Scavenger collects Lgt. Armor Plating. 02794_ Acquired 4 matter. 02796_ S-10 Pest destroyed. 02797_ Acquired 4 matter. 02799_ S-10 Pest destroyed. 02800_ Acquired 4 matter. 02800_ Imp. Heat Sink destroyed. 02802_ Hvy. Assault Rifle destroyed. 02804_ Lgt. Treads destroyed. 02805_ S-10 Pest destroyed. 02805_ R-06 Scavenger collects Lgt. Ion Engine. 02806_ Acquired 1 matter. 02806_ Lgt. Assault Rifle destroyed. 02808_ Destroyed Flight Unit. Map ----- +----------------------------------------------------+ | ?# # """ ########+##### %# ##???? | | ?# # + # ! "" #???? | | ?####+######+################## # S"" ##???? | | ?# #?????????????# # "" #????? | | ?# #?????????????# # #????? | | ?# #?????????????# ###+##########? | | ?############ #??????######## # | | ????????????# #??????# [# ! + | | ????????????# #??????# T # """ """ # | | ????????????# #??????# # """ """ # | | ??########### #??????# # """ """ # | | ??# ## #??????# # | | ??# ## %##?????# # "Y" | | ??# # ##########+###s ! """ | | ??# #=! s ###########??# | | ??# + %T s #????????????? | | ??# # [ s #????????????? | | ??# # [ ############## #????????????? | | ??# ## ## ]#?????# #????????????? | | ??# ## ## """ #?????# #????????????? | | ??########### ! ## """ #?????# #????????????? | | ????????????#% ## """ ####### ##/##????????? | | ????????????# ## #%s%* r ???????? | | ?############[ ## """ +!/*[= ???????? | | ?#| ## ## """ #s*[ ???????? | | ?# """ # # """ !#@#######+##### ?????????? | | ?#[[ """ # # #=#?????? ??????????????? | | ?#[[ """ + + """ =#%#??????" ??????????????? | | ?# """ # # """ #[#???????"??????????????? | | ?# """ # # """ #s###????????????????????? | | ?# ####### + +????????????????????? | | ?# #?????###/########???????????g????????? | | ?###########???????# #???????????????????????????? | | ???????????????????# #???????????????????????????? | | ???????????????????# #???????????????????????????? | | ???????????????????# #???????????????????????????? | | ???????????????????! ???????????????????????????? | | ??????????????????? ???????????????????????????? | | ??????????????????? ] ???????????????????????????? | | ??????????????????? ???????????????????????????? | | ??????????????????? ???????????????????????????? | | ???????????????????###???????????????????????????? | | ?????????????????????????????????????????????????? | | ?????????????????????????????????????????????????? | | ?????????????????????????????????????????????????? | | ?????????????????????????????????????????????????? | | ?????????????????????????????????????????????????? | | ?????????????????????????????????????????????????? | | ?????????????????????????????????????????????????? | | ?????????????????????????????????????????????????? | +----------------------------------------------------+ Best States ------------- Heat Dissipation 45 Energy Generation 14 Energy Capacity 250 Matter Stores 300 Matter Capacity 300 Sight Range 16 Terrain Scan Density 10 Evasion (%) 40 Targeting Accuracy 6 Recoil Reduction 3 Offensive Hacking 10 Item Schematics ----------------- None Robot Schematics ------------------ None Fabricated ------------ Nothing Repaired ---------- Lgt. Treads | 66% | -10/Materials Assault Rifle | 66% | -10/Materials Alien Tech Used ----------------- None Achievements -------------- None Challenges ------------ None Game ------ Seed VisualArmorCalibrator Manual? 0 Play Time 00:17:51 Cumulative 117.3 hours Start 2025.09.30 @ 13:24:05 End 2025.09.30 @ 13:38:22 Sessions 1 Manual Loads 0 Difficulty Rogue Special Mode None Game No. 226 Rogue 224 Adventurer 0 Explorer 2 Win Type - Total 1 Types 1/0/0/0/0/0/0/0/0/0 Lore% 41 Gallery% 50 Achievement% 44 Wizard Run 0 Options --------- Layout 2 ASCII 0 Keyboard 1 Movement Arrows Keybinds 0 Fullscreen 1 Font 28/SmallcapsGlow Map View 50x49 Zoom Use 5% Tactical HUD 1 Map Filters NONE Filters NONE Steam 1 RUN: 7906089c-f308-4b12-972c-b6c9dcc870f0